[Event "Niedersachsen-ch A 2024"]
[Site "Verden Aller"]
[Date "2024.01.06"]
[Round "6.7"]
[White "Lau, Udo"]
[Black "Loecken, Siegfried"]
[Result "0-1"]
[ECO "A43"]
[WhiteElo "2071"]
[BlackElo "2014"]
[Annotator "NA RC"]
[PlyCount "118"]
[EventDate "2024.01.01"]
[EventType "swiss"]
[EventCountry "GER"]
[SourceTitle "playchess.com"]
[Source "ChessBase"]
[SourceQuality "1"]
[TimeControl "40/5400+30:1800+30"]

1. d4 {[%emt 0:00:06]} Nf6 {[%emt 0:00:10]} 2. Nf3 {[%emt 0:00:22]} c5 {[%emt 0:00:16]} 3. d5 {[%emt 0:01:37]} e6 {[%emt 0:00:07]} 4. Nc3 {[%emt 0:00:54]} exd5 {[%emt 0:00:32]} 5. Nxd5 {[%emt 0:00:16]} Nxd5 {[%emt 0:00:09]} 6. Qxd5 {[%emt 0:00:15]} Nc6 {[%emt 0:00:02]} 7. e4 {[%emt 0:02:24]} d6 {[%emt 0:00:12]} 8. Bg5 {[%emt 0:05:56]} Qb6 {[%emt 0:01:22]} 9. Qb3 {[%emt 0:01:35]} Qxb3 {[%emt 0:00:37]} 10. axb3 {[%emt 0:00:13]} h6 {[%emt 0:00:56]} 11. Bf4 {[%emt 0:00:57]} g5 {[%emt 0:09:10]} 12. Bg3 {[%emt 0:01:28]} f5 {[%emt 0:00:12]} 13. exf5 {[%emt 0:00:47]} Bxf5 {[%emt 0:00:11]} 14. O-O-O {[%emt 0:00:33]} O-O-O {[%emt 0:00:28]} 15. Bd3 {[%emt 0:04:40]} Bxd3 {[%emt 0:01:15]} 16. Rxd3 {[%emt 0:00:11]} d5 {[%emt 0:00:50]} 17. Ne5 {[%emt 0:00:38]} Rh7 {[%emt 0:03:11]} 18. Nxc6 {[%emt 0:00:46]} bxc6 {[%emt 0:00:03]} 19. Re1 {[%emt 0:03:44]} Re7 {[%emt 0:02:13]} 20. Rxe7 {[%emt 0:03:56]} Bxe7 {[%emt 0:00:43]} 21. Kd2 {[%emt 0:01:09]} Bf6 {[%emt 0:02:12]} 22. c3 {[%emt 0:00:19]} Kd7 {[%emt 0:08:12]} 23. f3 {[%emt 0:06:15]} a6 {[%emt 0:06:32]} 24. Kc2 {[%emt 0:00:40]} Re8 {[%emt 0:02:45]} 25. Rd2 {[%emt 0:00:17]} Be5 {[%emt 0:03:32]} 26. Bxe5 {[%emt 0:00:44]} Rxe5 {[%emt 0:00:03]} 27. Kd3 {[%emt 0:00:29]} Ke6 {[%emt 0:06:18]} 28. Rd1 {[%emt 0:00:18]} Kd6 {[%emt 0:04:41]} 29. Ra1 {[%emt 0:03:13]} h5 {[%emt 0:00:42]} 30. Kd2 {[%emt 0:02:19]} g4 {[%emt 0:03:15]} 31. f4 {[%emt 0:02:23]} Re7 {[%emt 0:01:04]} 32. Rxa6 {[%emt 0:01:35]} g3 {[%emt 0:02:20]} 33. h3 {[%emt 0:02:16]} Re4 {[%emt 0:01:00]} 34. Ra4 {[%emt 0:05:19]} d4 {[%emt 0:00:16]} 35. cxd4 {[%emt 0:02:15]} cxd4 {[%emt 0:00:31]} 36. Kd3 {[%emt 0:00:52]} Re3+ {[%emt 0:42:28]} 37. Kd2 {[%emt 0:47:19]} c5 {[%emt 0:00:00]} 38. Ra6+ {[%emt 0:00:00]} Kd5 {[%emt 0:00:00]} 39. Rb6 {[%emt 0:00:00]} h4 {[%emt 0:00:00]} 40. f5 {[%emt 0:00:00]} Re5 {[%emt 0:00:00]} 41. Rf6 {[%emt 0:00:00]} Ke4 {[%emt 0:00:00]} 42. Rh6 {[%emt 0:00:00]} Rxf5 {[%emt 0:00:00]} 43. Rxh4+ {[%emt 0:00:00]} Kd5 {[%emt 0:00:00]} 44. Kd3 {[%emt 0:00:26]} Rf2 {[%emt 0:00:00]} 45. Rh5+ {[%emt 0:00:10]} Kc6 {[%emt 0:00:00]} 46. b4 {[%emt 0:02:55]} cxb4 {[%emt 0:00:00]} 47. b3 {[%emt 0:03:07]} Rxg2 {[%emt 0:00:00]} 48. Kxd4 {[%emt 0:28:52]} Rg1 {[%emt 0:00:00]} 49. Rc5+ {[%emt 0:00:00]} Kd6 {[%emt 0:00:00]} 50. Rc2 {[%emt 0:00:00]} Rh1 {[%emt 0:00:32]} 51. Ke4 {[%emt 0:00:00]} Rh2 {[%emt 0:02:43]} 52. Rc1 {[%emt 0:00:00]} g2 {[%emt 0:01:09]} 53. Rg1 {[%emt 0:00:00]} Kc5 {[%emt 0:00:48]} 54. Kf4 {[%emt 0:00:00]} Rxh3 {[%emt 0:00:19]} 55. Rxg2 {[%emt 0:00:00]} Rxb3 {[%emt 0:00:14]} 56. Ke4 {[%emt 0:00:00]} Kc4 {[%emt 0:00:48]} 57. Rc2+ {[%emt 0:00:00]} Rc3 {[%emt 0:00:46]} 58. Rb2 {[%emt 0:00:00]} b3 {[%emt 0:00:37]} 59. Rh2 {[%emt 0:00:00]} Rg3 {[%emt 0:02:32]} 0-1

[Event "Niedersachsen-ch A 2024"]
[Site "Verden Aller"]
[Date "2024.01.06"]
[Round "6.8"]
[White "Jacobi, Felix-Hagen"]
[Black "Soellig, Martin"]
[Result "1/2-1/2"]
[ECO "C01"]
[WhiteElo "2056"]
[BlackElo "1892"]
[Annotator "NA RC"]
[PlyCount "48"]
[EventDate "2024.01.01"]
[EventType "swiss"]
[EventCountry "GER"]
[SourceTitle "playchess.com"]
[Source "ChessBase"]
[SourceQuality "1"]
[TimeControl "40/5400+30:1800+30"]

1. e4 {[%emt 0:00:06]} e6 {[%emt 0:00:55]} 2. d4 {[%emt 0:00:07]} d5 {[%emt 0:00:05]} 3. exd5 {[%emt 0:00:09]} exd5 {[%emt 0:00:08]} 4. Bd3 {[%emt 0:00:10]} Bd6 {[%emt 0:00:07]} 5. c3 {[%emt 0:00:35]} c6 {[%emt 0:03:08]} 6. Qc2 {[%emt 0:00:29]} Nf6 {[%emt 0:01:04]} 7. Bg5 {[%emt 0:00:06]} h6 {[%emt 0:00:27]} 8. Bh4 {[%emt 0:00:10]} Be6 {[%emt 0:01:37]} 9. Nd2 {[%emt 0:00:17]} Nbd7 {[%emt 0:01:18]} 10. Ne2 {[%emt 0:00:18]} Qc7 {[%emt 0:01:11]} 11. Bg3 {[%emt 0:00:05]} a5 {[%emt 0:06:51]} 12. O-O {[%emt 0:01:15]} O-O {[%emt 0:00:16]} 13. Bxd6 {[%emt 0:01:15]} Qxd6 {[%emt 0:00:07]} 14. Ng3 {[%emt 0:00:24]} Rfe8 {[%emt 0:04:36]} 15. Rfe1 {[%emt 0:00:48]} Nf8 {[%emt 0:01:45]} 16. h3 {[%emt 0:05:59]} Bd7 {[%emt 0:01:30]} 17. Nf3 {[%emt 0:00:35]} Rxe1+ {[%emt 0:01:05]} 18. Rxe1 {[%emt 0:00:05]} Re8 {[%emt 0:00:05]} 19. Rxe8 {[%emt 0:02:48]} Nxe8 {[%emt 0:01:11]} 20. Qe2 {[%emt 0:01:08]} Qe6 {[%emt 0:00:44]} 21. Ne5 {[%emt 0:01:55]} Nd6 {[%emt 0:05:14]} 22. Kf1 {[%emt 0:10:34]} f6 {[%emt 0:01:31]} 23. Nxd7 {[%emt 0:06:22]} Qxe2+ {[%emt 0:00:42]} 24. Kxe2 {[%emt 0:00:51]} Nxd7 {[%emt 0:00:10]} 1/2-1/2

[Event "Niedersachsen-ch A 2024"]
[Site "Verden Aller"]
[Date "2024.01.06"]
[Round "6.9"]
[White "Carlstedt, Jonathan"]
[Black "Drygala, Lars"]
[Result "1/2-1/2"]
[ECO "A13"]
[WhiteElo "2447"]
[BlackElo "1869"]
[Annotator "RC"]
[PlyCount "104"]
[EventDate "2024.01.01"]
[EventType "swiss"]
[EventCountry "GER"]
[SourceTitle "playchess.com"]
[Source "ChessBase"]
[SourceQuality "1"]
[TimeControl "40/5400+30:1800+30"]

1. Nf3 {[%emt 0:00:40]} d5 {[%emt 0:00:15]} 2. e3 {[%emt 1:30:50]} Nf6 {[%emt 0:00:15]} 3. c4 {[%emt 0:00:00]} e6 {[%emt 0:00:13]} 4. b3 {[%emt 0:00:00]} Be7 {[%emt 0:00:16]} 5. Bb2 {[%emt 0:00:00]} O-O {[%emt 1:32:01]} 6. Qc2 {[%emt 0:02:00]} b6 {[%emt 0:00:30]} 7. Nc3 {[%emt 0:00:30]} Bb7 {[%emt 0:00:30]} 8. h4 {[%emt 0:00:30]} c5 {[%emt 0:00:00]} 9. cxd5 {[%emt 0:00:30]} exd5 {[%emt 0:01:00]} 10. Ng5 {[%emt 0:00:30]} Nbd7 {[%emt 0:00:30]} 11. Bd3 {[%emt 0:00:30]} h6 {[%emt 0:00:30]} 12. Bh7+ {[%emt 0:00:00]} Kh8 {[%emt 0:00:30]} 13. Ne2 {[%emt 0:01:00]} Bd6 {[%emt 0:00:30]} 14. Bf5 {[%emt 0:00:30]} Be5 {[%emt 0:00:30]} 15. Bxe5 {[%emt 0:00:00]} Nxe5 {[%emt 0:00:00]} 16. d4 {[%emt 0:01:00]} cxd4 {[%emt 0:01:00]} 17. Nxd4 {[%emt 0:00:30]} Bc8 {[%emt 0:00:30]} 18. Rd1 {[%emt 0:00:00]} Qe7 {[%emt 0:00:30]} 19. Kf1 {[%emt 0:01:00]} Neg4 {[%emt 0:00:30]} 20. Bxg4 {[%emt 0:00:00]} Bxg4 {[%emt 0:00:00]} 21. f3 {[%emt 0:01:00]} Bh5 {[%emt 0:00:00]} 22. Qd2 {[%emt 0:00:00]} Bg6 {[%emt 0:00:00]} 23. Nh3 {[%emt 0:01:00]} Nh5 {[%emt 0:02:00]} 24. Qf2 {[%emt 0:00:00]} f5 {[%emt 0:00:00]} 25. g3 {[%emt 0:00:00]} Rae8 {[%emt 0:00:00]} 26. Re1 {[%emt 0:00:00]} Qc7 {[%emt 0:00:00]} 27. Kg2 {[%emt 0:00:00]} Qc3 {[%emt 0:00:00]} 28. Re2 {[%emt 0:02:30]} Re7 {[%emt 0:00:00]} 29. Rhe1 {[%emt 0:00:00]} Rfe8 {[%emt 0:00:00]} 30. Nf4 {[%emt 0:01:00]} Nxf4+ {[%emt 0:00:00]} 31. gxf4 {[%emt 0:00:00]} Qd3 {[%emt 0:04:00]} 32. Nc6 {[%emt 0:00:00]} Re6 {[%emt 0:00:00]} 33. Ne5 {[%emt 0:01:30]} Rxe5 {[%emt 0:00:00]} 34. fxe5 {[%emt 0:00:00]} Rxe5 {[%emt 0:00:00]} 35. Rd2 {[%emt 0:00:00]} Qc3 {[%emt 0:00:00]} 36. Rc2 {[%emt 0:00:00]} Qb4 {[%emt 0:02:30]} 37. Rd2 {[%emt 0:00:00]} Bh5 {[%emt 0:00:00]} 38. Rd4 {[%emt 0:00:00]} Qc3 {[%emt 0:00:00]} 39. f4 {[%emt 0:00:00]} Re6 {[%emt 0:00:00]} 40. Kh2 {[%emt 0:00:00]} Bf3 {[%emt 0:00:00]} 41. h5 {[%emt 0:06:21]} Be4 {[%emt 0:00:00]} 42. Rg1 {[%emt 0:03:55]} Qc6 {[%emt 0:00:00]} 43. Rdd1 {[%emt 0:01:56]} Qe8 {[%emt 0:00:00]} 44. Qh4 {[%emt 0:03:27]} Bf3 {[%emt 0:00:00]} 45. Rd2 {[%emt 0:05:17]} Rxe3 {[%emt 0:00:00]} 46. Rf1 {[%emt 0:01:29]} Bg4 {[%emt 0:00:00]} 47. Kg1 {[%emt 0:00:08]} Qe4 {[%emt 0:00:58]} 48. Qf2 {[%emt 0:06:18]} Rh3 {[%emt 0:06:46]} 49. Qg2 {[%emt 0:00:17]} Qe3+ {[%emt 0:00:24]} 50. Qf2 {[%emt 0:00:07]} Rg3+ {[%emt 0:03:11]} 51. Kh2 {[%emt 0:00:16]} Rh3+ {[%emt 0:00:30]} 52. Kg1 {[%emt 0:00:05]} Rg3+ {[%emt 0:00:20]} 1/2-1/2

[Event "Niedersachsen-ch A 2024"]
[Site "Verden Aller"]
[Date "2024.01.06"]
[Round "6.10"]
[White "Koch, Yannick"]
[Black "Nielsen, Lars Aaes"]
[Result "1-0"]
[ECO "D06"]
[WhiteElo "1981"]
[BlackElo "2202"]
[Annotator "RC"]
[PlyCount "45"]
[EventDate "2024.01.01"]
[EventType "swiss"]
[EventCountry "GER"]
[SourceTitle "playchess.com"]
[Source "ChessBase"]
[SourceQuality "1"]
[TimeControl "40/5400+30:1800+30"]

1. d4 {[%emt 0:00:06]} Nf6 {[%emt 1:31:00]} 2. c4 {[%emt 1:31:24]} d5 {[%emt 0:00:00]} 3. cxd5 {[%emt 0:00:00]} Nxd5 {[%emt 0:00:00]} 4. e4 {[%emt 0:00:00]} Nf6 {[%emt 0:00:00]} 5. Nc3 {[%emt 0:00:00]} e6 {[%emt 0:02:00]} 6. Nf3 {[%emt 0:00:00]} Be7 {[%emt 0:00:30]} 7. Be3 {[%emt 0:02:30]} O-O {[%emt 0:00:30]} 8. Bd3 {[%emt 0:00:30]} b6 {[%emt 0:00:30]} 9. Qe2 {[%emt 0:00:00]} a5 {[%emt 0:00:30]} 10. O-O {[%emt 0:01:00]} Ba6 {[%emt 0:00:30]} 11. Rfd1 {[%emt 0:00:00]} Bxd3 {[%emt 0:00:00]} 12. Rxd3 {[%emt 0:01:00]} c6 {[%emt 0:01:00]} 13. d5 {[%emt 0:00:00]} exd5 {[%emt 0:00:00]} 14. exd5 {[%emt 0:00:00]} cxd5 {[%emt 0:01:00]} 15. Rad1 {[%emt 0:01:30]} Ra7 {[%emt 0:00:00]} 16. Nxd5 {[%emt 0:00:00]} Nxd5 {[%emt 0:00:00]} 17. Rxd5 {[%emt 0:00:00]} Qc7 {[%emt 0:01:30]} 18. Nd4 {[%emt 0:00:00]} Qc8 {[%emt 0:00:30]} 19. Nf5 {[%emt 0:02:00]} Qe6 {[%emt 0:00:00]} 20. Qb5 {[%emt 0:00:30]} Bf6 {[%emt 0:01:00]} 21. Qxb6 {[%emt 0:00:00]} Qxb6 {[%emt 0:00:00]} 22. Bxb6 {[%emt 0:00:00]} Rb7 {[%emt 0:00:00]} 23. Bc5 {[%emt 0:00:00]} 1-0

[Event "Niedersachsen-ch A 2024"]
[Site "Verden Aller"]
[Date "2024.01.06"]
[Round "6.11"]
[White "Kieselbach, Jannik"]
[Black "Bulygin, Anton"]
[Result "1-0"]
[ECO "C41"]
[WhiteElo "1885"]
[BlackElo "2040"]
[Annotator "NA RC"]
[PlyCount "101"]
[EventDate "2024.01.01"]
[EventType "swiss"]
[EventCountry "GER"]
[SourceTitle "playchess.com"]
[Source "ChessBase"]
[SourceQuality "1"]
[TimeControl "40/5400+30:1800+30"]

1. e4 {[%emt 0:00:04]} d6 {[%emt 0:00:12]} 2. d4 {[%emt 0:00:23]} Nf6 {[%emt 0:00:09]} 3. Nc3 {[%emt 0:00:13]} Nbd7 {[%emt 0:00:14]} 4. Nf3 {[%emt 0:00:30]} e5 {[%emt 0:00:12]} 5. Bc4 {[%emt 0:00:15]} Be7 {[%emt 0:00:07]} 6. O-O {[%emt 0:00:13]} O-O {[%emt 0:00:09]} 7. Re1 {[%emt 0:00:16]} c6 {[%emt 0:00:22]} 8. a4 {[%emt 0:00:16]} a5 {[%emt 0:00:39]} 9. h3 {[%emt 0:00:23]} h6 {[%emt 0:00:13]} 10. Be3 {[%emt 0:00:44]} Qc7 {[%emt 0:00:33]} 11. Qd2 {[%emt 0:00:43]} exd4 {[%emt 0:01:32]} 12. Nxd4 {[%emt 0:01:51]} Ne5 {[%emt 1:32:08]} 13. Ba2 {[%emt 1:31:09]} Kh7 {[%emt 0:00:00]} 14. f4 {[%emt 0:00:00]} Ng6 {[%emt 0:00:00]} 15. g4 {[%emt 0:00:00]} c5 {[%emt 0:00:00]} 16. Nf5 {[%emt 0:00:00]} Be6 {[%emt 0:00:00]} 17. Nb5 {[%emt 0:00:00]} Qc6 {[%emt 0:00:00]} 18. Nxe7 {[%emt 0:00:00]} Nxe7 {[%emt 0:00:00]} 19. Qxd6 {[%emt 0:00:00]} Bxa2 {[%emt 0:00:00]} 20. Rxa2 {[%emt 0:00:00]} Qxd6 {[%emt 0:00:00]} 21. Nxd6 {[%emt 0:00:00]} b6 {[%emt 0:00:00]} 22. Raa1 {[%emt 0:00:00]} Kg8 {[%emt 0:00:00]} 23. Rad1 {[%emt 0:00:00]} Rad8 {[%emt 0:00:00]} 24. Kg2 {[%emt 0:00:00]} Rd7 {[%emt 0:00:00]} 25. Rd2 {[%emt 0:00:00]} Rfd8 {[%emt 0:00:00]} 26. Red1 {[%emt 0:00:00]} Kf8 {[%emt 0:00:00]} 27. Kf3 {[%emt 0:00:00]} Nc8 {[%emt 0:00:00]} 28. Nxc8 {[%emt 0:00:00]} Rxd2 {[%emt 0:00:00]} 29. Rxd2 {[%emt 0:00:00]} Rxc8 {[%emt 0:00:00]} 30. e5 {[%emt 0:00:00]} Ne8 {[%emt 0:00:00]} 31. c3 {[%emt 0:00:00]} Ke7 {[%emt 0:00:00]} 32. Ke4 {[%emt 0:00:00]} f6 {[%emt 0:00:00]} 33. Bf2 {[%emt 0:00:00]} Rc6 {[%emt 0:00:00]} 34. Bh4 {[%emt 0:02:35]} g5 {[%emt 0:00:00]} 35. fxg5 {[%emt 0:00:45]} hxg5 {[%emt 0:00:00]} 36. Bg3 {[%emt 0:00:40]} Re6 {[%emt 0:00:00]} 37. Kf5 {[%emt 0:00:54]} Ng7+ {[%emt 0:00:00]} 38. Kg6 {[%emt 0:00:34]} Ne8 {[%emt 0:00:00]} 39. Re2 {[%emt 0:01:54]} fxe5+ {[%emt 0:00:00]} 40. Kxg5 {[%emt 0:00:29]} e4 {[%emt 0:00:00]} 41. Kf5 {[%emt 0:33:08]} Nf6 {[%emt 0:00:00]} 42. Bh4 {[%emt 0:02:20]} e3 {[%emt 0:00:00]} 43. Bg5 {[%emt 0:00:00]} Kf7 {[%emt 0:00:00]} 44. Rxe3 {[%emt 0:00:00]} Rd6 {[%emt 0:00:00]} 45. Bxf6 {[%emt 0:00:00]} Rxf6+ {[%emt 0:00:00]} 46. Ke4 {[%emt 0:00:00]} Re6+ {[%emt 0:00:00]} 47. Kd3 {[%emt 0:00:00]} Rd6+ {[%emt 0:00:00]} 48. Kc4 {[%emt 0:00:00]} Rd2 {[%emt 0:00:00]} 49. b3 {[%emt 0:00:00]} Rb2 {[%emt 0:00:00]} 50. Rf3+ {[%emt 0:00:00]} Kg7 {[%emt 0:00:00]} 51. Rd3 {[%emt 0:00:00]} 1-0

[Event "Niedersachsen-ch A 2024"]
[Site "Verden Aller"]
[Date "2024.01.06"]
[Round "6.12"]
[White "Hoke, Joshua"]
[Black "Martin, Dennis"]
[Result "0-1"]
[ECO "B33"]
[WhiteElo "1600"]
[BlackElo "1991"]
[Annotator "NA"]
[PlyCount "172"]
[EventDate "2024.01.01"]
[EventType "swiss"]
[EventCountry "GER"]
[SourceTitle "playchess.com"]
[Source "ChessBase"]
[SourceQuality "1"]
[TimeControl "40/5400+30:1800+30"]

1. e4 {[%emt 0:02:38]} c5 {[%emt 0:00:02]} 2. Nf3 {[%emt 0:00:06]} Nc6 {[%emt 0:00:03]} 3. d4 {[%emt 0:00:21]} cxd4 {[%emt 0:00:02]} 4. Nxd4 {[%emt 0:00:08]} Nf6 {[%emt 0:00:02]} 5. Nc3 {[%emt 0:00:20]} e5 {[%emt 0:00:02]} 6. Ndb5 {[%emt 0:00:28]} d6 {[%emt 0:00:02]} 7. Bg5 {[%emt 0:00:14]} a6 {[%emt 0:00:03]} 8. Na3 {[%emt 0:00:08]} b5 {[%emt 0:00:07]} 9. Nd5 {[%emt 0:00:39]} Be7 {[%emt 0:00:03]} 10. Bxf6 {[%emt 0:00:26]} Bxf6 {[%emt 0:00:04]} 11. c3 {[%emt 0:00:49]} O-O {[%emt 0:00:33]} 12. Nc2 {[%emt 0:00:08]} Bg5 {[%emt 0:00:07]} 13. a4 {[%emt 0:00:52]} bxa4 {[%emt 0:00:52]} 14. Rxa4 {[%emt 0:00:38]} a5 {[%emt 0:00:04]} 15. b4 {[%emt 0:07:38]} Be6 {[%emt 0:02:42]} 16. b5 {[%emt 0:10:56]} Ne7 {[%emt 0:04:23]} 17. Nce3 {[%emt 0:09:34]} Bxe3 {[%emt 0:02:31]} 18. Nxe3 {[%emt 0:00:35]} Qc7 {[%emt 0:10:01]} 19. c4 {[%emt 0:04:15]} Nc8 {[%emt 0:00:47]} 20. Qd3 {[%emt 0:18:04]} Nb6 {[%emt 0:01:18]} 21. Ra1 {[%emt 0:01:51]} Rfc8 {[%emt 0:02:59]} 22. Rc1 {[%emt 0:00:31]} Qc5 {[%emt 0:01:02]} 23. Be2 {[%emt 0:02:08]} Qb4+ {[%emt 0:06:39]} 24. Qc3 {[%emt 0:08:27]} Rc5 {[%emt 0:01:11]} 25. O-O {[%emt 0:04:37]} Rac8 {[%emt 0:00:45]} 26. Qxb4 {[%emt 0:04:25]} axb4 {[%emt 0:00:02]} 27. Rb1 {[%emt 0:00:15]} Bxc4 {[%emt 0:05:26]} 28. Nxc4 {[%emt 0:02:46]} Nxc4 {[%emt 0:00:24]} 29. Rxb4 {[%emt 0:10:56]} Nb6 {[%emt 0:02:55]} 30. g3 {[%emt 0:00:44]} Kf8 {[%emt 0:00:32]} 31. Kg2 {[%emt 0:00:51]} Ke7 {[%emt 0:00:20]} 32. Ra1 {[%emt 0:00:41]} R8c7 {[%emt 0:00:22]} 33. Ra6 {[%emt 0:00:47]} Rb7 {[%emt 0:00:13]} 34. Rb1 {[%emt 0:03:21]} Kd7 {[%emt 0:05:34]} 35. f4 {[%emt 0:01:43]} Kc7 {[%emt 0:03:16]} 36. Rb2 {[%emt 0:01:28]} Kb8 {[%emt 0:06:34]} 37. Kf2 {[%emt 0:00:54]} Nc8 {[%emt 0:01:36]} 38. h4 {[%emt 0:01:00]} Rb6 {[%emt 0:03:43]} 39. Rba2 {[%emt 0:01:28]} Kc7 {[%emt 0:01:09]} 40. Kf3 {[%emt 0:00:23]} Rc3+ {[%emt 0:02:56]} 41. Kf2 {[%emt 0:31:50]} Rb7 {[%emt 0:34:28]} 42. Rd2 {[%emt 0:00:00]} Nb6 {[%emt 0:00:00]} 43. Kg2 {[%emt 0:00:00]} g6 {[%emt 0:00:00]} 44. h5 {[%emt 0:00:00]} Nc8 {[%emt 0:00:00]} 45. hxg6 {[%emt 0:00:00]} hxg6 {[%emt 0:00:00]} 46. Kf2 {[%emt 0:00:00]} Rb6 {[%emt 0:00:00]} 47. Rd5 {[%emt 0:00:00]} f6 {[%emt 0:00:00]} 48. Rd1 {[%emt 0:00:00]} Rc2 {[%emt 0:00:00]} 49. Kf3 {[%emt 0:00:00]} Kb7 {[%emt 0:00:00]} 50. Rda1 {[%emt 0:00:00]} Rc3+ {[%emt 0:00:00]} 51. Kf2 {[%emt 0:00:00]} f5 {[%emt 0:00:00]} 52. exf5 {[%emt 0:00:00]} gxf5 {[%emt 0:00:00]} 53. fxe5 {[%emt 0:00:00]} dxe5 {[%emt 0:00:00]} 54. Rh1 {[%emt 0:00:00]} Rc7 {[%emt 0:00:00]} 55. Rh5 {[%emt 0:00:00]} Nd6 {[%emt 0:00:42]} 56. Rxb6+ {[%emt 0:00:00]} Kxb6 {[%emt 0:00:09]} 57. Rh6 {[%emt 0:00:00]} Kc5 {[%emt 0:00:21]} 58. Rg6 {[%emt 0:00:00]} Rf7 {[%emt 0:03:16]} 59. Rg8 {[%emt 0:00:00]} Rb7 {[%emt 0:08:03]} 60. Rg6 {[%emt 0:02:51]} Rb6 {[%emt 0:06:31]} 61. Rg8 {[%emt 0:00:46]} Kd5 {[%emt 0:00:44]} 62. Ke3 {[%emt 0:00:50]} Nxb5 {[%emt 0:00:46]} 63. Bxb5 {[%emt 0:00:40]} Rxb5 {[%emt 0:00:02]} 64. Rd8+ {[%emt 0:00:41]} Ke6 {[%emt 0:00:06]} 65. Rd3 {[%emt 0:00:36]} Rb4 {[%emt 0:01:05]} 66. Ra3 {[%emt 0:00:06]} Kf6 {[%emt 0:00:11]} 67. Kf3 {[%emt 0:01:15]} Rd4 {[%emt 0:00:41]} 68. Rb3 {[%emt 0:02:02]} Rc4 {[%emt 0:01:11]} 69. Ra3 {[%emt 0:00:17]} Kg5 {[%emt 0:00:18]} 70. Ra8 {[%emt 0:00:59]} Rc3+ {[%emt 0:00:25]} 71. Kf2 {[%emt 0:00:37]} Rc2+ {[%emt 0:00:29]} 72. Ke3 {[%emt 0:02:17]} Rc6 {[%emt 0:02:32]} 73. Kf3 {[%emt 0:00:37]} e4+ {[%emt 0:00:47]} 74. Kf2 {[%emt 0:00:49]} Rc2+ {[%emt 0:00:24]} 75. Ke3 {[%emt 0:00:40]} Kg4 {[%emt 0:00:22]} 76. Rg8+ {[%emt 0:00:28]} Kh3 {[%emt 0:00:04]} 77. Rg5 {[%emt 0:00:41]} Rc3+ {[%emt 0:00:24]} 78. Kf2 {[%emt 0:00:32]} Rf3+ {[%emt 0:00:04]} 79. Ke2 {[%emt 0:00:43]} Kg2 {[%emt 0:00:21]} 80. Ke1 {[%emt 0:00:45]} Rf2 {[%emt 0:01:00]} 81. Kd1 {[%emt 0:00:46]} Kf1 {[%emt 0:00:14]} 82. Rh5 {[%emt 0:00:23]} e3 {[%emt 0:00:35]} 83. Rh1+ {[%emt 0:00:42]} Kg2 {[%emt 0:00:03]} 84. Re1 {[%emt 0:00:16]} Kf3 {[%emt 0:00:03]} 85. Rg1 {[%emt 0:00:16]} e2+ {[%emt 0:00:48]} 86. Ke1 {[%emt 0:00:46]} Rf1+ {[%emt 0:00:09]} 0-1

[Event "Niedersachsen-ch A 2024"]
[Site "Verden Aller"]
[Date "2024.01.06"]
[Round "6.13"]
[White "Weigand, Anton"]
[Black "Harms, Friedjof"]
[Result "1/2-1/2"]
[ECO "C65"]
[WhiteElo "2013"]
[BlackElo "1844"]
[Annotator "NA RC"]
[PlyCount "61"]
[EventDate "2024.01.01"]
[EventType "swiss"]
[EventCountry "GER"]
[SourceTitle "playchess.com"]
[Source "ChessBase"]
[SourceQuality "1"]
[TimeControl "40/5400+30:1800+30"]

1. e4 {[%emt 0:00:15]} e5 {[%emt 0:00:04]} 2. Nf3 {[%emt 0:00:13]} Nc6 {[%emt 0:00:10]} 3. Bb5 {[%emt 0:00:06]} Bc5 {[%emt 0:00:05]} 4. c3 {[%emt 0:00:06]} Nf6 {[%emt 0:00:10]} 5. d4 {[%emt 0:00:46]} exd4 {[%emt 0:00:27]} 6. O-O {[%emt 0:00:25]} Nxe4 {[%emt 0:04:14]} 7. cxd4 {[%emt 0:03:33]} Bb6 {[%emt 0:03:34]} 8. d5 {[%emt 0:10:31]} Ne7 {[%emt 0:03:47]} 9. Qe2 {[%emt 0:20:29]} Nxf2 {[%emt 0:15:33]} 10. Rxf2 {[%emt 0:02:35]} Bxf2+ {[%emt 0:00:18]} 11. Qxf2 {[%emt 0:06:17]} Nxd5 {[%emt 0:05:29]} 12. Nc3 {[%emt 0:14:40]} Nxc3 {[%emt 0:02:11]} 13. Bg5 {[%emt 0:02:07]} f6 {[%emt 0:02:00]} 14. Re1+ {[%emt 0:00:07]} Kf8 {[%emt 0:01:21]} 15. bxc3 {[%emt 0:00:04]} c6 {[%emt 0:07:27]} 16. Bd3 {[%emt 0:03:50]} d6 {[%emt 0:11:27]} 17. Bf4 {[%emt 0:03:09]} g6 {[%emt 0:05:27]} 18. Qg3 {[%emt 0:10:04]} Kf7 {[%emt 0:04:19]} 19. Bxd6 {[%emt 0:01:48]} Re8 {[%emt 0:01:12]} 20. Bc4+ {[%emt 0:03:44]} Kg7 {[%emt 0:03:22]} 21. Rd1 {[%emt 0:03:37]} Qa5 {[%emt 0:01:04]} 22. h4 {[%emt 0:04:31]} Qxc3 {[%emt 0:06:11]} 23. Bb3 {[%emt 0:00:51]} Bf5 {[%emt 0:06:47]} 24. Nd4 {[%emt 0:03:23]} Qxg3 {[%emt 0:01:08]} 25. Nxf5+ {[%emt 0:00:10]} gxf5 {[%emt 0:00:09]} 26. Bxg3 {[%emt 0:00:10]} Rad8 {[%emt 0:01:41]} 27. Rf1 {[%emt 0:00:30]} Rd3 {[%emt 0:02:29]} 28. Bc7 {[%emt 0:01:16]} Rd2 {[%emt 0:00:36]} 29. Ba5 {[%emt 0:02:31]} Rd4 {[%emt 0:00:57]} 30. Rxf5 {[%emt 0:01:31]} Re5 {[%emt 0:01:27]} 31. Bc3 {[%emt 0:01:29]} 1/2-1/2

[Event "Niedersachsen-ch A 2024"]
[Site "Verden Aller"]
[Date "2024.01.06"]
[Round "6.14"]
[White "Moeller, Jonas"]
[Black "Miljkovic, Jovana"]
[Result "1/2-1/2"]
[ECO "B81"]
[WhiteElo "1836"]
[BlackElo "2035"]
[Annotator "NA RC"]
[PlyCount "68"]
[EventDate "2024.01.01"]
[EventType "swiss"]
[EventCountry "GER"]
[SourceTitle "playchess.com"]
[Source "ChessBase"]
[SourceQuality "1"]
[TimeControl "40/5400+30:1800+30"]

1. e4 {[%emt 0:00:03]} c5 {[%emt 0:00:03]} 2. Nf3 {[%emt 0:00:05]} d6 {[%emt 0:00:03]} 3. d4 {[%emt 0:00:04]} cxd4 {[%emt 0:00:03]} 4. Nxd4 {[%emt 0:00:05]} Nf6 {[%emt 0:00:02]} 5. Nc3 {[%emt 0:00:07]} a6 {[%emt 0:00:04]} 6. h3 {[%emt 0:00:07]} e6 {[%emt 0:00:04]} 7. g4 {[%emt 0:00:05]} Be7 {[%emt 0:00:10]} 8. g5 {[%emt 0:00:08]} Nfd7 {[%emt 0:00:08]} 9. Be3 {[%emt 0:00:16]} Nc6 {[%emt 0:01:24]} 10. h4 {[%emt 0:05:54]} Qc7 {[%emt 0:01:39]} 11. Qe2 {[%emt 0:03:44]} b5 {[%emt 0:01:11]} 12. Nxc6 {[%emt 0:04:03]} Qxc6 {[%emt 0:00:16]} 13. a3 {[%emt 0:00:30]} Rb8 {[%emt 0:06:26]} 14. f4 {[%emt 0:08:27]} b4 {[%emt 0:01:49]} 15. axb4 {[%emt 0:04:12]} Rxb4 {[%emt 0:00:27]} 16. Bc1 {[%emt 0:16:41]} Nb6 {[%emt 0:07:41]} 17. Bg2 {[%emt 0:02:59]} Bb7 {[%emt 0:00:57]} 18. O-O {[%emt 0:01:14]} O-O {[%emt 0:06:45]} 19. Nd1 {[%emt 0:07:21]} d5 {[%emt 0:04:12]} 20. c3 {[%emt 0:04:42]} Rb5 {[%emt 0:06:12]} 21. Nf2 {[%emt 0:13:35]} Qc7 {[%emt 0:05:46]} 22. Nd3 {[%emt 0:07:17]} Qc4 {[%emt 0:05:47]} 23. Re1 {[%emt 0:01:46]} Rd8 {[%emt 0:03:19]} 24. Nf2 {[%emt 0:03:40]} a5 {[%emt 0:08:26]} 25. Be3 {[%emt 0:03:42]} Qxe2 {[%emt 0:01:25]} 26. Rxe2 {[%emt 0:00:03]} Nc4 {[%emt 0:01:49]} 27. Bc1 {[%emt 0:00:51]} dxe4 {[%emt 0:02:58]} 28. Bxe4 {[%emt 0:02:16]} Bxe4 {[%emt 0:04:33]} 29. Nxe4 {[%emt 0:05:20]} Rd1+ {[%emt 0:01:06]} 30. Kg2 {[%emt 0:00:34]} Bd8 {[%emt 0:02:31]} 31. Nf2 {[%emt 0:00:32]} Rd7 {[%emt 0:02:39]} 32. Ra4 {[%emt 0:00:57]} Nb6 {[%emt 0:02:05]} 33. Rae4 {[%emt 0:00:31]} Bc7 {[%emt 0:05:05]} 34. Kf3 {[%emt 0:03:23]} h6 {[%emt 0:00:48]} 1/2-1/2